bitfinex-derivatives/quotes_SOLF0:USTF0_20241021
["timestamp","ask_amount","ask_price","bid_price","bid_amount"]
[1729494260832,2.9513,169.46,169.42,2.9519]
[1729494261141,2.9517,169.44,169.37,1.3407]
[1729494261327,4.94,169.43,169.36,1.3073]
[1729494261734,7.8919,169.43,169.36,1.3073]
[1729494262133,2.9519,169.43,169.36,1.3073]
[1729494262334,7.8919,169.43,169.36,1.3073]
[1729494263034,0.1,169.38,169.36,1.3073]
[1729494264032,1.2884,169.49,169.36,4.31245257]
[1729494264237,4.94,169.48,169.36,1.3073]
[1729494264432,4.94,169.48,169.36,4.26756428]
[1729494264641,2.9512,169.46,169.37,2.9527]
[1729494265045,4.94,169.48,169.37,2.9527]
[1729494265248,63.78,169.6,169.38,2.9525]
[1729494265441,4.94,169.51,169.36,4.26756428]
[1729494266147,2.951,169.48,169.39,2.9524]
[1729494266451,4.94,169.47,169.36,4.26756428]
[1729494266748,2.9516,169.44,169.36,6.2473]
[1729494267048,4.94,169.43,169.36,1.3073]
[1729494267237,4.94,169.43,169.35,1.2905]
[1729494268439,2.9521,169.42,169.35,1.2905]
[1729494269748,4.94,169.43,169.29,1.47735229]
[1729494269949,1.2694,169.41,169.24,2.71625229]
[1729494270146,1.2694,169.41,169.25,1.47735229]
[1729494270350,2.9535,169.34,169.26,1.47735229]
[1729494270644,7.8935,169.34,169.24,4.1939]
[1729494270847,7.8935,169.34,169.25,1.47771866]
[1729494271048,2.9531,169.36,169.24,1.2389]
[1729494271243,6.2094,169.41,169.25,1.47769876]
[1729494271447,2.9532,169.35,169.26,4.43239876]
[1729494271646,4.94,169.36,169.27,1.47769876]
[1729494271847,4.94,169.35,169.26,4.94]
[1729494272048,2.9535,169.34,169.26,4.94]
[1729494272450,4.94,169.35,169.26,4.94]
[1729494272650,2.9536,169.33,169.26,4.94]
[1729494273553,2.9537,169.32,169.24,9.1339]
[1729494273851,2.9537,169.32,169.24,6.1789]
[1729494274443,2.9539,169.31,169.24,6.1789]
[1729494274844,2.9539,169.31,169.25,1.47777384]
[1729494275041,2.9539,169.31,169.24,6.1789]
[1729494275343,2.9539,169.31,169.25,1.4777732]
[1729494275543,2.9539,169.31,169.24,6.1789]
[1729494276247,2.9541,169.3,169.24,6.1789]
[1729494276647,2.9541,169.3,169.24,1.2389]
[1729494277253,2.9544,169.29,169.21,4.2764]
[1729494277548,4.96,169.31,169.2,1.2183]
[1729494277748,2.9549,169.25,169.2,1.2183]
[1729494278954,2.9547,169.26,169.2,1.2183]
[1729494279146,4.96,169.27,169.2,1.2183]
[1729494279851,2.9547,169.26,169.2,1.2183]
[1729494280954,2.955,169.25,169.2,1.2183]
[1729494281148,4.96,169.27,169.15,2.644]
[1729494281354,4.96,169.27,169.16,1.4782902]
[1729494281659,3.8556,169.26,169.15,1.3473]
[1729494283861,2.9561,169.19,169.13,7.797]
[1729494284454,2.9561,169.18,169.13,4.84]
[1729494286157,4.84,169.22,169.11,4.84]
[1729494286665,2.9567,169.15,169.11,4.84]
[1729494286862,2.9567,169.15,169.09,2.9576]
[1729494287560,2.9567,169.15,169.08,6.1809]
[1729494287561,2.957,169.14,169.08,9.1387]
[1729494287963,4.84,169.18,169.08,9.1387]
[1729494288169,2.5937,169.17,169.08,1.3409]
[1729494288357,2.5937,169.17,168.92,339.51530727]
[1729494288358,2.9575,169.11,169.05,2.9583]
[1729494288562,2.9575,169.11,169.05,7.7983]
[1729494288757,2.9575,169.11,169.05,4.84]
[1729494289261,63.86,169.24,169.05,7.4442]
[1729494289454,2.9566,169.16,169.06,1.2975]
[1729494289858,2.9566,169.16,169.1,2.9574]
[1729494292066,7.7961,169.19,169.13,2.9569]
[1729494292263,2.9561,169.19,169.09,4.84]
[1729494292465,2.5937,169.23,169.09,4.84]
[1729494292466,4.84,169.22,169.09,4.84]
[1729494292667,2.956,169.19,169.14,2.9567]
[1729494293169,4.84,169.22,169.13,4.84]
[1729494294264,2.9559,169.2,169.15,2.9565]
[1729494294762,2.956,169.19,169.14,2.9568]
[1729494295061,4.84,169.22,169.14,2.9568]
[1729494295267,4.84,169.22,169.13,4.84]
[1729494295461,2.9558,169.21,169.15,2.9565]
[1729494295965,2.9558,169.2,169.15,2.9565]
[1729494298971,2.9558,169.2,169.16,2.9564]
[1729494299673,4.84,169.22,169.14,3.9029]
[1729494299974,2.9552,169.24,169.14,3.9029]
[1729494300172,7.7949,169.25,169.14,3.9029]
[1729494300974,2.9549,169.26,169.14,3.9029]
[1729494301165,2.9549,169.26,169.21,2.9555]
[1729494301567,4.84,169.28,169.18,4.84]
[1729494301763,4.84,169.28,169.17,4.84]
[1729494302374,4.84,169.28,169.18,2.9561]
[1729494302777,2.9549,169.25,169.18,2.9561]
[1729494302975,4.84,169.28,169.17,4.84]
[1729494303677,1.2534,169.31,169.17,4.94]
[1729494303871,4.84,169.29,169.17,4.94]
[1729494304171,2.9542,169.29,169.24,2.9549]
[1729494305180,4.84,169.31,169.22,1.3194]
[1729494305376,4.84,169.31,169.21,4.84]
[1729494305679,6.1896,169.31,169.18,4.84]
[1729494306073,6.1896,169.31,169.17,0.1]
[1729494306376,6.1896,169.31,169.17,4.94]
[1729494306970,2.9546,169.27,169.22,2.9554]
[1729494307773,2.9548,169.26,169.22,2.9554]
[1729494307969,6.1896,169.31,169.21,2.9555]
[1729494308268,4.84,169.3,169.17,4.94]
[1729494308471,2.9543,169.29,169.17,4.94]
[1729494308878,4.84,169.3,169.17,4.94]
[1729494309177,2.9544,169.28,169.17,4.94]
[1729494309377,2.9544,169.28,169.17,4.84]
[1729494309777,2.9542,169.29,169.17,4.84]
[1729494310074,4.84,169.3,169.27,2.9544]
[1729494310279,1.2417,169.32,169.27,2.9544]
[1729494310677,2.5766,169.4,169.29,2.9541]
[1729494310875,6.1093,169.39,169.24,2.89583864]
[1729494311281,1.2693,169.39,169.28,2.9543]
[1729494311583,1.2693,169.39,169.23,3.7936]
[1729494311584,4.78,169.38,169.23,3.7936]
[1729494311781,22.56,169.38,169.17,0.1]
[1729494311988,28.4656,169.38,169.18,4.78]
[1729494312478,2.9546,169.27,169.22,2.9553]
[1729494312677,2.9546,169.27,169.18,4.78]
[1729494313077,4.78,169.29,169.18,4.78]
[1729494313280,4.78,169.29,169.24,2.955]
[1729494313486,4.78,169.32,169.24,2.955]
[1729494313981,4.78,169.32,169.23,2.9552]
[1729494314182,1.2286,169.31,169.22,4.78]
[1729494314887,2.9543,169.29,169.24,2.9549]
[1729494315185,1.2286,169.31,169.22,4.78]
[1729494315582,2.9541,169.3,169.25,2.9547]
[1729494317479,2.9546,169.27,169.2,2.9557]
[1729494317684,2.9546,169.27,169.18,4.78]
[1729494317879,4.78,169.28,169.18,4.78]
[1729494318283,2.9549,169.26,169.21,2.9554]
[1729494318881,2.9538,169.32,169.27,2.9545]
[1729494319082,4.78,169.34,169.22,4.78]
[1729494319283,4.78,169.33,169.22,4.78]
[1729494319485,4.78,169.36,169.22,4.78]
[1729494319780,4.78,169.37,169.23,3.8197]
[1729494320087,4.78,169.37,169.23,6.78483277]
[1729494320589,2.9533,169.35,169.29,2.954]
[1729494320793,4.78,169.37,169.27,4.78]
[1729494320991,4.78,169.37,169.28,4.78]
[1729494321291,2.953,169.36,169.31,2.9538]
[1729494321592,4.78,169.38,169.31,2.9538]
[1729494322187,2.9528,169.37,169.32,2.9537]
[1729494324296,4.78,169.38,169.28,4.78]
[1729494324683,4.78,169.38,169.33,2.9534]
[1729494325384,7.7327,169.38,169.34,2.9533]
[1729494326890,7.7327,169.38,169.31,2.9537]
[1729494326891,2.953,169.36,169.31,2.9537]
[1729494327087,4.78,169.38,169.27,0.1]
[1729494327492,2.953,169.37,169.32,2.9535]
[1729494327795,4.78,169.4,169.3,4.78]
[1729494328294,2.9528,169.38,169.33,2.9535]
[1729494328687,4.78,169.4,169.33,2.9535]
[1729494329892,2.9526,169.38,169.33,2.9535]
[1729494330091,2.9526,169.38,169.3,4.78]
[1729494330399,2.9526,169.38,169.34,2.9532]
[1729494331989,2.9526,169.38,169.32,2.9536]
[1729494332292,2.9525,169.39,169.3,4.78]
[1729494332692,4.78,169.4,169.3,4.78]
[1729494332890,2.9528,169.38,169.34,2.9533]
[1729494335898,4.78,169.4,169.3,0.1]
[1729494336498,2.9533,169.35,169.31,2.9538]
[1729494336696,7.7333,169.35,169.31,2.9538]
[1729494340700,2.9533,169.35,169.31,2.9538]
[1729494342206,4.74,169.36,169.29,2.9542]
[1729494342207,7.6931,169.36,169.29,2.9542]
[1729494342408,4.74,169.36,169.3,0.1]
[1729494342803,2.9533,169.35,169.31,2.9538]
[1729494343011,4.74,169.36,169.3,0.1]
[1729494343207,2.5733,169.34,169.3,0.1]
[1729494343810,2.9539,169.31,169.3,0.1]
[1729494344015,4.74,169.32,169.3,0.1]
[1729494345608,2.9539,169.31,169.3,0.1]
[1729494348217,2.9541,169.3,169.26,2.9546]
[1729494351621,4.74,169.32,169.23,1.2226]
[1729494351818,4.74,169.32,169.24,2.9551]
[1729494352123,4.74,169.32,169.23,1.2226]
[1729494352911,4.74,169.32,169.25,2.9548]
[1729494353119,4.74,169.32,169.23,1.2226]
[1729494353515,2.9544,169.28,169.24,2.9549]
[1729494353919,4.74,169.32,169.23,4.17862317]
[1729494354119,4.74,169.32,169.23,1.2226]
[1729494354414,4.74,169.32,169.28,2.9543]
[1729494355024,7.6938,169.32,169.28,2.9543]
[1729494355721,2.5733,169.34,169.24,4.21467823]
[1729494355722,7.6935,169.33,169.29,2.9541]
[1729494356420,4.74,169.33,169.29,2.9541]
[1729494356626,2.9537,169.32,169.27,2.9544]
[1729494356830,2.9537,169.32,169.25,1.2284]
[1729494357127,2.954,169.31,169.25,1.2284]
[1729494357321,4.74,169.33,169.26,2.9547]
[1729494357623,2.9547,169.26,169.23,1.2226]
[1729494357816,4.74,169.29,169.19,4.74]
[1729494358820,2.9544,169.28,169.19,4.74]
[1729494359014,4.74,169.29,169.19,4.74]
[1729494359220,4.74,169.29,169.2,1.47819366]
[1729494359416,2.9539,169.31,169.21,1.47819366]
[1729494359620,2.9539,169.31,169.22,2.741149]
[1729494359827,2.9539,169.31,169.23,5.53199833]
[1729494360326,2.9539,169.31,169.23,10.27199833]
[1729494360825,2.953,169.37,169.23,10.27199833]
[1729494361024,2.953,169.37,169.24,1.47781487]
[1729494361223,4.74,169.38,169.23,10.27199833]
[1729494361428,4.74,169.38,169.29,2.9541]
[1729494361429,2.9533,169.34,169.29,2.9541]
[1729494362225,4.74,169.38,169.27,4.74]
[1729494362824,2.5343,169.37,169.25,4.74]
[1729494363536,2.9536,169.33,169.28,2.9542]
[1729494367632,4.74,169.35,169.23,5.53199833]
[1729494367833,4.74,169.35,169.24,6.21793302]
[1729494368035,4.74,169.35,169.24,4.74]
[1729494368230,2.9538,169.32,169.27,2.9545]
[1729494368727,4.74,169.35,169.27,2.9545]
[1729494370238,4.74,169.35,169.23,1.2535]
[1729494370438,1.2391,169.34,169.23,1.2535]
[1729494370629,1.2391,169.34,169.14,3.8177]
[1729494370937,1.2391,169.34,169.15,6.19834212]
[1729494371131,2.955,169.25,169.16,1.47834212]
[1729494371437,2.955,169.25,169.2,2.9556]
[1729494371638,4.72,169.26,169.15,4.72]
[1729494371936,7.6748,169.26,169.22,2.9553]
[1729494372638,4.72,169.29,169.19,4.72]
[1729494372838,1.2391,169.34,169.2,1.47830195]
[1729494373035,4.72,169.33,169.21,1.47830195]
[1729494373333,4.72,169.33,169.19,4.72]
[1729494373334,7.6734,169.34,169.29,2.9541]
[1729494373532,4.72,169.34,169.29,2.9541]
[1729494373733,4.72,169.34,169.26,4.72]
[1729494373929,4.72,169.34,169.22,3.8643]
[1729494374133,4.72,169.34,169.23,1.47801637]
[1729494374328,4.72,169.34,169.24,1.47814043]
[1729494374532,2.9541,169.3,169.25,2.9547]
[1729494375830,4.72,169.34,169.22,11.56775978]
[1729494376140,4.72,169.35,169.23,1.47798594]
[1729494376436,4.72,169.35,169.24,1.47798594]
[1729494376638,4.72,169.35,169.25,1.47798594]
[1729494376941,4.72,169.35,169.26,6.19798594]
[1729494377133,4.72,169.35,169.32,2.9536]
[1729494377330,2.9529,169.37,169.32,2.9536]
[1729494377533,4.72,169.36,169.32,2.9536]
[1729494381532,2.9528,169.37,169.32,2.9536]
[1729494382043,2.9528,169.37,169.35,0.1]
[1729494385039,2.953,169.36,169.35,0.1]
[1729494387544,2.953,169.36,169.32,2.9536]
[1729494388647,4.72,169.39,169.3,4.2316]
[1729494388648,2.9535,169.34,169.3,4.2316]
[1729494389454,2.9537,169.33,169.3,1.2777]
[1729494389747,2.9537,169.33,169.27,4.72]
[1729494389954,2.9537,169.33,169.28,2.9542]
[1729494390147,4.72,169.35,169.28,2.9542]
[1729494390345,2.9539,169.32,169.28,2.9542]
[1729494390547,4.72,169.35,169.27,2.9545]
[1729494390749,2.9539,169.31,169.27,2.9545]
[1729494391352,4.72,169.35,169.26,2.9547]
[1729494391747,4.72,169.35,169.23,7.2639]
[1729494391950,2.9535,169.34,169.29,2.954]
[1729494392354,2.9535,169.34,169.23,7.2639]
[1729494392552,2.9537,169.33,169.23,7.2639]
[1729494392755,4.72,169.35,169.24,1.47791758]
[1729494393058,4.72,169.35,169.25,1.47791758]
[1729494393258,2.954,169.31,169.27,2.9545]
[1729494393753,4.72,169.35,169.23,7.2639]
[1729494393953,2.9537,169.32,169.24,1.47789781]
[1729494394257,4.72,169.35,169.25,1.47789781]
[1729494394456,2.9535,169.33,169.28,2.9542]
[1729494395453,4.72,169.35,169.26,2.9547]
[1729494395947,2.954,169.31,169.26,2.9547]
[1729494396859,4.72,169.35,169.23,7.2639]
[1729494397054,4.72,169.35,169.24,4.43304961]
[1729494397256,4.72,169.35,169.25,1.47804961]
[1729494397554,4.72,169.35,169.23,2.5439]
[1729494397750,2.9533,169.34,169.24,4.43315015]
[1729494397951,4.72,169.35,169.24,2.955]
[1729494398354,4.72,169.35,169.23,2.5439]
[1729494398551,2.9543,169.29,169.25,2.9549]
[1729494407966,2.9544,169.28,169.24,2.955]
[1729494408666,2.9547,169.27,169.23,2.9552]
[1729494408872,4.72,169.3,169.19,4.68]
[1729494409163,4.72,169.3,169.2,1.47843512]
[1729494409369,2.9551,169.24,169.21,4.43393512]
[1729494409570,2.9551,169.24,169.22,1.47843512]
[1729494409776,2.9551,169.24,169.21,2.9555]
[1729494409963,4.68,169.26,169.14,3.9447]
[1729494410268,17.78,169.34,169.14,3.9447]
[1729494410269,4.68,169.25,169.15,1.47857444]
[1729494410467,2.9561,169.19,169.16,1.47857444]
[1729494410670,2.9561,169.19,169.17,1.47857444]
[1729494411070,4.68,169.21,169.14,1.3106]
[1729494411271,4.68,169.21,169.15,1.4789751]
[1729494411562,1.22,169.2,169.05,3.8814]
[1729494411766,2.4926,169.2,169.06,6.15921269]
[1729494412068,2.4926,169.2,169.07,1.47921269]
[1729494412365,2.4926,169.2,169.08,1.47921269]
[1729494412560,2.4926,169.2,169.09,1.47921269]
[1729494412864,2.4926,169.2,169.05,3.8814]
[1729494413070,2.9573,169.12,169.07,2.958]
[1729494413371,4.68,169.13,169.05,3.8814]
[1729494413573,4.68,169.13,169.06,1.47942773]
[1729494413870,4.68,169.13,169.07,1.47942773]
[1729494414064,2.9577,169.1,169.05,3.8814]
[1729494414465,4.68,169.13,169.05,3.8814]
[1729494415269,4.68,169.13,169.08,2.9578]
[1729494415565,2.957,169.13,169.08,2.9578]
[1729494416374,7.6367,169.15,169.1,2.9574]
[1729494417270,4.68,169.15,169.1,2.9574]
[1729494417472,2.9569,169.14,169.1,2.9574]
[1729494417674,4.68,169.15,169.07,4.68]
[1729494417874,4.68,169.15,169.12,2.9571]
[1729494419369,2.9564,169.17,169.12,2.9571]
[1729494420169,2.9564,169.17,169.1,2.9575]
[1729494420376,2.9564,169.17,169.07,4.68]
[1729494420577,1.2754,169.24,169.07,4.68]
[1729494420578,7.6357,169.21,169.07,4.68]
[1729494420770,4.68,169.21,169.08,1.47908034]
[1729494421073,4.68,169.21,169.09,1.47908034]
[1729494421375,4.68,169.21,169.1,1.47908034]
[1729494421574,4.68,169.21,169.05,3.8814]
[1729494421575,2.9558,169.2,169.14,2.9568]
[1729494421969,4.68,169.21,169.12,4.30106873]
[1729494422168,2.9565,169.16,169.11,2.9573]
[1729494422371,4.68,169.17,169.06,2.75537288]
[1729494422575,5.9525,169.16,169.06,1.2765]
[1729494422780,1.2785,169.15,169.05,2.6088]
[1729494423182,1.2785,169.15,169.05,1.3106]
[1729494423378,2.5677,169.15,169.05,4.2689]
[1729494423677,2.5677,169.15,169.0,4.68]
[1729494423883,2.5677,169.15,169.05,2.9584]
[1729494424481,2.9578,169.09,169.05,2.9584]
[1729494424881,4.68,169.11,168.99,1.47956996]
[1729494425085,4.68,169.11,168.98,1.2705]
[1729494425588,2.9588,169.03,168.98,4.23]
[1729494425981,4.68,169.06,168.96,5.9901]
[1729494425982,2.9591,169.01,168.96,1.3101]
[1729494426485,2.5677,169.15,168.95,4.2366]
[1729494426486,2.9593,169.0,168.95,4.2366]
[1729494426873,2.9593,169.0,168.93,4.68]
[1729494427078,2.9593,169.0,168.94,2.9603]
[1729494427381,2.9593,169.0,168.93,4.68]
[1729494427382,2.9596,168.99,168.93,4.68]
[1729494427888,2.9596,168.99,168.93,7.6405]
[1729494428186,2.9594,169.0,168.93,7.6405]
[1729494428386,4.68,169.02,168.93,2.9605]
[1729494428790,4.68,169.02,168.93,2.9603]
[1729494428990,4.68,169.02,168.91,1.3158]
[1729494429385,4.68,169.02,168.91,5.9958]
[1729494429586,2.9594,169.0,168.94,2.9602]
[1729494430387,2.959,169.02,168.97,2.9597]
[1729494431481,2.959,169.02,168.94,4.66]
[1729494431688,2.9592,169.01,168.96,2.9599]
[1729494432387,4.66,169.03,168.94,4.66]
[1729494432582,2.9594,169.0,168.95,2.9601]
[1729494432888,4.66,169.03,168.94,4.66]
[1729494433088,4.66,169.03,168.91,1.3158]
[1729494433292,2.9596,168.99,168.94,2.9602]
[1729494433987,2.9599,168.97,168.92,2.9606]
[1729494435089,7.6195,168.99,168.92,2.9606]
[1729494435494,4.66,168.99,168.91,1.3158]
[1729494437595,4.66,168.99,168.93,2.9605]
[1729494438795,7.6195,168.99,168.93,2.9605]
[1729494438994,4.66,168.99,168.94,2.9603]
[1729494439298,2.9598,168.98,168.91,1.3158]
[1729494439495,4.66,168.99,168.91,2.9608]
[1729494439796,2.96,168.96,168.89,1.3482]
[1729494439997,4.66,168.99,168.89,4.3094]
[1729494440196,1.2947,168.98,168.89,1.3482]
[1729494441096,1.2947,168.98,168.88,1.227]
[1729494441697,1.3445,169.05,168.88,1.227]
[1729494441995,5.9547,169.04,168.88,1.227]
[1729494442196,5.9547,169.04,168.99,2.9594]
[1729494442495,4.66,169.04,168.99,2.9594]
[1729494443493,4.66,169.04,168.96,1.3349]
[1729494443896,4.66,169.07,168.96,1.3349]
[1729494444099,4.66,169.07,169.03,2.9587]
[1729494444300,4.66,169.07,168.98,4.66]
[1729494444895,4.66,169.09,168.98,4.66]
[1729494445795,4.66,169.09,169.04,2.9586]
[1729494446994,63.94,169.15,169.02,4.66]
[1729494447201,4.66,169.14,169.03,2.5026]
[1729494447399,7.6169,169.14,169.06,2.9582]
[1729494447698,7.6169,169.14,169.03,2.5026]
[1729494447699,7.6169,169.14,169.04,1.3267]
[1729494448001,7.6169,169.14,169.08,2.9577]
[1729494448197,1.3013,169.17,169.04,1.3267]
[1729494448392,5.9613,169.17,169.04,1.3267]
[1729494448600,5.9613,169.17,169.13,2.9569]
[1729494450296,5.9613,169.17,169.07,4.66]
[1729494451099,4.66,169.17,169.07,4.66]
[1729494451402,2.956,169.19,169.07,4.66]
[1729494451603,4.66,169.18,169.07,4.66]
[1729494452193,4.66,169.18,169.1,2.9575]
[1729494452397,4.66,169.18,169.07,4.66]
[1729494453897,4.66,169.18,169.14,2.9568]
[1729494454102,4.66,169.18,169.07,4.66]
[1729494454408,2.9558,169.2,169.07,4.66]
[1729494454409,4.66,169.19,169.07,4.66]
[1729494454709,126.58788535,169.25,169.07,4.66]
[1729494454907,123.63278535,169.25,169.07,4.66]
[1729494455299,4.66,169.26,169.08,63.9]
[1729494455497,2.5507,169.29,169.09,1.08688195]
[1729494455701,1.2612,169.35,169.08,63.9]
[1729494456013,1.2612,169.35,169.09,2.56529988]
[1729494456206,2.9538,169.32,169.26,2.9546]
[1729494456501,1.2612,169.35,169.24,4.64]
[1729494456701,1.3414,169.34,169.24,4.64]
[1729494456903,4.64,169.33,169.24,4.64]
[1729494457095,4.64,169.33,169.2,2.91175323]
[1729494457302,4.64,169.33,169.13,1.2546]
[1729494457505,4.64,169.33,169.14,4.64]
[1729494458109,2.9544,169.28,169.14,4.64]
[1729494458507,4.64,169.29,169.15,4.64]
[1729494458811,1.2481,169.28,169.16,4.64]
[1729494459002,4.64,169.29,169.16,4.64]
[1729494459508,4.64,169.29,169.19,2.9558]
[1729494459699,4.64,169.29,169.2,4.64]
[1729494460210,7.5943,169.29,169.23,2.9551]
[1729494461505,4.64,169.29,169.24,2.955]
[1729494462101,4.64,169.29,169.2,4.64]
[1729494462411,4.64,169.29,169.22,2.9554]
[1729494463301,4.64,169.29,169.25,2.9548]
[1729494463506,4.64,169.29,169.2,4.64]
[1729494463910,7.5942,169.29,169.24,2.9551]
[1729494466612,4.64,169.29,169.13,1.2546]
[1729494466813,4.64,169.29,169.14,4.7]
[1729494467507,4.64,169.29,169.13,1.2546]
[1729494467508,4.64,169.29,169.2,2.9556]
[1729494467714,1.2563,169.28,169.2,2.9556]
[1729494467918,2.9551,169.24,169.2,2.9556]
[1729494468113,2.9551,169.24,169.13,1.2546]
[1729494468114,2.9551,169.24,169.19,2.9559]
[1729494468310,4.7,169.25,169.19,2.9559]
[1729494468516,2.9553,169.23,169.19,2.9559]
[1729494468710,4.7,169.25,169.15,4.7]
[1729494468911,4.7,169.25,169.23,2.9551]
[1729494469119,1.2685,169.27,169.23,2.9551]
[1729494469817,1.2481,169.33,169.27,2.9545]
[1729494469818,4.7,169.31,169.27,2.9545]
[1729494470416,4.7,169.31,169.2,3.8241]
[1729494471520,2.9541,169.3,169.25,2.9547]
[1729494472614,2.9543,169.29,169.25,2.9547]
[1729494474317,4.7,169.31,169.2,3.8241]
[1729494474528,2.9546,169.27,169.23,2.9551]
[1729494474720,4.7,169.31,169.2,1.2946]
[1729494474918,2.9552,169.24,169.17,4.7]
[1729494475720,7.6551,169.25,169.2,2.9557]
[1729494476926,2.9551,169.24,169.2,2.9557]
[1729494477525,2.9554,169.22,169.18,2.956]
[1729494477723,4.7,169.25,169.14,4.7]
[1729494477922,3.8502,169.24,169.13,3.9457]
[1729494478326,2.9554,169.23,169.18,2.956]
[1729494478717,5.4971,169.24,169.19,2.9558]
[1729494479723,2.542,169.24,169.22,2.9554]
[1729494479927,4.7,169.24,169.22,2.9554]
[1729494480123,4.7,169.24,169.16,4.7]
[1729494480624,4.7,169.24,169.22,2.9553]
[1729494481028,2.5563,169.31,169.22,2.9553]
[1729494481331,2.9546,169.27,169.16,4.7]
[1729494481726,2.9546,169.27,169.22,2.9553]
[1729494482133,7.6546,169.27,169.22,2.9553]
[1729494482434,2.9548,169.26,169.22,2.9553]
[1729494483625,4.7,169.27,169.24,2.955]
[1729494483830,4.7,169.29,169.2,4.7]
[1729494484230,7.6542,169.29,169.23,2.9552]
[1729494484428,7.6542,169.29,169.21,1.3173]
[1729494485836,7.6542,169.29,169.25,2.9548]
[1729494487938,2.9545,169.28,169.23,2.9551]
[1729494488141,4.7,169.29,169.23,2.9551]
[1729494488339,4.7,169.29,169.21,1.3173]
[1729494488736,4.7,169.29,169.24,2.955]
[1729494488737,2.9544,169.28,169.24,2.955]
[1729494492238,2.9547,169.27,169.23,2.9552]
[1729494497053,4.7,169.29,169.21,1.3173]
[1729494497349,2.9544,169.28,169.24,2.955]
[1729494498149,4.7,169.29,169.21,4.33067002]
[1729494498349,7.6543,169.29,169.25,2.9548]
[1729494498548,8.07524752,169.5,169.21,6.89237002]
[1729494498851,2.954,169.31,169.24,2.955]
[1729494499050,4.62,169.33,169.21,6.89237002]
[1729494499542,2.9541,169.3,169.26,2.9546]
[1729494499737,4.62,169.32,169.21,6.89237002]
[1729494499943,21.6151,169.4,169.21,6.89237002]
[1729494500137,2.954,169.31,169.27,2.9544]
[1729494500346,4.62,169.33,169.21,6.89237002]
[1729494500543,3.8651,169.4,169.24,4.62]
[1729494500943,8.4851,169.4,169.24,4.62]
[1729494501256,2.9527,169.38,169.28,2.9542]
[1729494501443,2.9527,169.38,169.29,8.549]
[1729494501948,11.4375,169.4,169.34,2.9533]
[1729494502554,2.9527,169.38,169.34,2.9533]
[1729494504444,2.953,169.37,169.32,2.9536]
[1729494504643,8.4851,169.4,169.29,1.2889]
[1729494504845,8.4851,169.4,169.26,4.62]
[1729494505250,2.9533,169.35,169.3,2.954]
[1729494505446,4.62,169.36,169.24,4.62]
[1729494505654,2.9539,169.31,169.26,2.9546]
[1729494509053,2.9539,169.31,169.27,2.9544]
[1729494511147,4.62,169.35,169.24,4.62]
[1729494511343,4.62,169.36,169.24,4.62]
[1729494511746,2.9534,169.34,169.29,2.9541]
[1729494513446,2.9534,169.34,169.3,2.954]